bitfinex/quotes_SOLUSD_20251117
["timestamp","ask_amount","ask_price","bid_price","bid_amount"]
[1763364719987,2.79696566,141.72,141.67,2.79696566]
[1763364720174,2.79696566,141.71,141.67,0.67]
[1763364720494,2.79696566,141.7,141.67,0.67]
[1763364721060,3.51696566,141.69,141.66,0.2]
[1763364721266,103.1,141.68,141.66,0.2]
[1763364721491,103.1,141.67,141.66,0.2]
[1763364722292,103.1,141.67,141.66,0.86]
[1763364723475,103.1,141.67,141.66,3.65696566]
[1763364727003,103.1,141.67,141.66,0.86]
[1763364727301,2.79696566,141.68,141.66,0.2]
[1763364727477,3.51696566,141.67,141.66,0.2]
[1763364728202,13.30579335,141.67,141.66,0.2]
[1763364731307,2.79696566,141.67,141.66,0.2]
[1763364731510,2.79696566,141.68,141.66,0.2]
[1763364731691,2.79696566,141.68,141.66,0.86]
[1763364732416,105.89696566,141.68,141.66,0.86]
[1763364732801,106.61696566,141.68,141.66,0.2]
[1763364733109,105.89696566,141.68,141.66,0.2]
[1763364733307,106.61696566,141.68,141.66,0.2]
[1763364734397,3.51696566,141.67,141.66,0.2]
[1763364734598,13.30579335,141.67,141.66,0.2]
[1763364734795,35.95699335,141.67,141.66,0.2]
[1763364737093,13.30579335,141.67,141.66,0.2]
[1763364739015,16.10275901,141.67,141.66,0.2]
[1763364740907,13.30579335,141.67,141.66,0.2]
[1763364741227,10.50882769,141.67,141.66,0.2]
[1763364741400,13.30579335,141.67,141.66,0.2]
[1763364742900,12.30080873,141.67,141.66,0.2]
[1763364743419,19.46873289,141.67,141.66,0.2]
[1763364744808,42.11993289,141.67,141.66,0.2]
[1763364745306,44.95129017,141.67,141.66,0.2]
[1763364746734,22.30009017,141.67,141.66,0.2]
[1763364749534,9.78882769,141.63,141.62,0.2]
[1763364749733,11.58080873,141.63,141.62,0.85]
[1763364749930,9.78882769,141.63,141.62,0.85]
[1763364750136,11.58080873,141.63,141.62,0.85]
[1763364750910,24.44318104,141.64,141.62,0.85]
[1763364753720,1.79198104,141.63,141.62,0.85]
[1763364754316,11.58080873,141.63,141.62,0.2]
[1763364754931,11.58080873,141.63,141.62,0.9]
[1763364755323,11.58080873,141.63,141.62,0.2]
[1763364755714,12.24080873,141.63,141.62,0.2]
[1763364755914,11.58080873,141.63,141.62,0.2]
[1763364756632,12.24080873,141.63,141.62,0.2]
[1763364758424,34.89200873,141.63,141.62,0.2]
[1763364759529,37.72416789,141.63,141.62,0.2]
[1763364759728,15.07296789,141.63,141.62,0.2]
[1763364760441,112.68882769,141.6,141.59,0.2]
[1763364760618,18.74873289,141.6,141.59,0.2]
[1763364760818,19.40873289,141.6,141.59,0.2]
[1763364763552,19.40873289,141.6,141.57,0.1]
[1763364763553,32.44002769,141.58,141.57,0.1]
[1763364763837,34.23200873,141.58,141.57,0.1]
[1763364764038,34.89200873,141.58,141.57,0.1]
[1763364764417,12.24080873,141.58,141.57,0.1]
[1763364765822,34.23200873,141.58,141.57,0.1]
[1763364766228,12.24080873,141.58,141.57,0.1]
[1763364768617,34.23200873,141.58,141.57,0.1]
[1763364768846,34.89200873,141.58,141.57,0.1]
[1763364769422,12.24080873,141.58,141.57,0.1]
[1763364769836,15.07397089,141.58,141.57,0.1]
[1763364770038,102.8,141.55,141.54,0.1]
[1763364770246,34.23200873,141.55,141.54,0.1]
[1763364770442,34.89200873,141.55,141.54,0.1]
[1763364770618,32.44002769,141.55,141.54,0.1]
[1763364770822,34.23200873,141.55,141.54,0.8]
[1763364771027,9.78882769,141.55,141.54,0.8]
[1763364772035,11.58080873,141.58,141.54,0.8]
[1763364773943,1.79198104,141.57,141.54,0.8]
[1763364775965,103.1,141.57,141.54,0.8]
[1763364776256,104.89198104,141.57,141.54,0.8]
[1763364777550,103.1,141.57,141.54,2.59198104]
[1763364777930,103.1,141.57,141.55,0.7]
[1763364778154,104.89198104,141.57,141.55,0.7]
[1763364780236,103.1,141.57,141.55,0.7]
[1763364780437,104.89198104,141.57,141.55,0.7]
[1763364784064,103.1,141.57,141.55,2.49198104]
[1763364784277,103.1,141.57,141.56,1.79198104]
[1763364784562,103.1,141.57,141.56,2.48198104]
[1763364784964,9.78882769,141.63,141.56,2.48198104]
[1763364785173,9.78882769,141.63,141.59,1.79198104]
[1763364785666,11.58080873,141.63,141.6,0.69]
[1763364786384,1.79198104,141.61,141.58,0.69]
[1763364786542,1.79198104,141.6,141.58,0.69]
[1763364786745,11.58080873,141.6,141.58,0.69]
[1763364787248,114.68080873,141.59,141.57,0.69]
[1763364787456,103.1,141.59,141.57,0.69]
[1763364788557,103.1,141.59,141.57,2.48198104]
[1763364789066,103.1,141.59,141.58,0.69]
[1763364789361,34.23200873,141.63,141.58,2.48198104]
[1763364789662,34.23200873,141.63,141.59,0.69]
[1763364790064,103.1,141.62,141.59,0.69]
[1763364790563,104.89198104,141.62,141.59,0.69]
[1763364790866,104.89198104,141.62,141.59,2.48198104]
[1763364790867,103.1,141.62,141.59,2.48198104]
[1763364791069,103.1,141.62,141.6,2.48198104]
[1763364791454,103.1,141.62,141.61,0.69]
[1763364791660,103.1,141.62,141.61,2.48198104]
[1763364792454,11.58080873,141.67,141.61,2.48198104]
[1763364792644,11.58080873,141.67,141.62,2.48198104]
[1763364792979,9.78882769,141.67,141.63,1.79198104]
[1763364793263,9.78882769,141.67,141.63,2.48198104]
[1763364793567,9.78882769,141.67,141.64,0.69]
[1763364794153,125.7512,141.68,141.64,2.48198104]
[1763364794351,125.7512,141.68,141.65,0.69]
[1763364794874,1.79198104,141.71,141.66,1.79198104]
[1763364795059,22.6512,141.7,141.66,1.79198104]
[1763364795260,22.6512,141.7,141.67,0.69]
[1763364795767,1.79198104,141.71,141.67,0.69]
[1763364795978,24.44318104,141.71,141.67,0.69]
[1763364797367,24.44318104,141.71,141.67,2.48198104]
[1763364797368,22.6512,141.71,141.67,2.48198104]
[1763364797885,22.6512,141.71,141.68,0.66]
[1763364798170,103.1,141.73,141.7,1.79198104]
[1763364798381,103.1,141.73,141.71,1.79198104]
[1763364798673,103.1,141.73,141.7,1.79198104]
[1763364799284,103.1,141.73,141.71,0.66]
[1763364802853,103.1,141.73,141.71,3.45543958]
[1763364803254,103.1,141.73,141.72,0.66]
[1763364803477,125.7512,141.77,141.72,3.45543958]
[1763364803662,125.7512,141.77,141.73,2.79543958]
[1763364803867,125.7512,141.77,141.73,3.45543958]
[1763364804086,128.54663958,141.77,141.74,0.66]
[1763364804291,129.20663958,141.77,141.72,2.79543958]
[1763364804470,2.79543958,141.74,141.69,2.79543958]
[1763364804658,2.79543958,141.74,141.67,23.3112]
[1763364804854,2.79543958,141.74,141.69,2.79543958]
[1763364805268,3.45543958,141.74,141.7,0.66]
[1763364805589,26.10663958,141.73,141.69,0.66]
[1763364805799,2.79543958,141.72,141.69,0.66]
[1763364805999,105.89543958,141.72,141.69,0.66]
[1763364806604,103.1,141.72,141.69,0.66]
[1763364807366,105.89543958,141.72,141.69,0.66]
[1763364808399,106.55543958,141.72,141.69,0.66]
[1763364808564,106.55543958,141.71,141.67,0.66]
[1763364808764,106.55543958,141.71,141.68,0.66]
[1763364808765,103.1,141.71,141.68,0.66]
[1763364808981,0.66,141.7,141.66,3.45543958]
[1763364809289,3.45543958,141.7,141.66,0.66]
[1763364810178,0.66,141.69,141.66,0.66]
[1763364810378,3.45543958,141.69,141.66,0.66]
[1763364810578,22.6512,141.68,141.66,0.66]
[1763364810783,22.6512,141.68,141.64,2.79543958]
[1763364810974,22.6512,141.68,141.65,0.72]
[1763364811475,3.46543958,141.69,141.65,0.72]
[1763364814090,103.1,141.68,141.65,0.72]
[1763364815874,103.1,141.68,141.65,3.51543958]
[1763364816078,103.1,141.68,141.66,2.79543958]
[1763364816281,103.1,141.68,141.67,0.72]
[1763364818269,103.1,141.68,141.65,0.72]
[1763364818476,103.1,141.68,141.66,0.72]
[1763364818996,103.1,141.68,141.67,2.79543958]
[1763364819398,103.1,141.68,141.67,3.51543958]
[1763364820996,9.78882769,141.74,141.67,3.51543958]
[1763364820997,103.1,141.73,141.67,3.51543958]
[1763364821189,103.1,141.73,141.69,2.79543958]
[1763364821382,2.79543958,141.71,141.67,0.72]
[1763364821895,3.46543958,141.71,141.67,0.72]
[1763364822270,0.67,141.71,141.67,3.51543958]
[1763364823004,9.78882769,141.72,141.68,3.51543958]
[1763364823298,2.79543958,141.71,141.64,22.6512]
[1763364823488,13.25426727,141.72,141.67,2.79543958]
[1763364823682,10.45882769,141.72,141.67,2.79543958]
[1763364823893,10.45882769,141.72,141.64,22.6512]
[1763364823894,13.25426727,141.72,141.68,0.72]
[1763364825099,103.1,141.73,141.68,3.51543958]
[1763364825100,105.89543958,141.73,141.68,3.51543958]
[1763364825303,106.56543958,141.73,141.68,3.51543958]
[1763364825500,106.56543958,141.73,141.69,0.72]
[1763364826602,3.46543958,141.72,141.69,0.72]
[1763364827101,2.79543958,141.71,141.67,0.72]
[1763364827286,3.46543958,141.71,141.67,0.72]
[1763364827484,0.67,141.7,141.67,0.72]
[1763364828184,103.1,141.69,141.66,0.72]
[1763364828507,103.1,141.68,141.66,0.72]
[1763364829382,103.1,141.68,141.66,3.51543958]
[1763364829584,103.1,141.68,141.67,0.72]
[1763364829914,103.1,141.68,141.66,0.72]
[1763364831103,103.1,141.68,141.6,2.79543958]
[1763364831104,103.77,141.68,141.64,3.51543958]
[1763364831486,0.67,141.67,141.64,3.51543958]
[1763364831692,103.77,141.67,141.64,3.51543958]
[1763364832105,103.1,141.67,141.64,3.51543958]
[1763364832496,103.1,141.67,141.65,0.72]
[1763364832805,103.77,141.66,141.62,0.72]
[1763364833109,105.89543958,141.66,141.62,0.72]
[1763364833292,106.56543958,141.66,141.62,0.72]
[1763364833827,103.1,141.66,141.63,2.79543958]
[1763364834196,103.1,141.66,141.63,3.51543958]
[1763364834594,103.1,141.66,141.63,0.72]
[1763364834795,103.77,141.66,141.63,0.72]
[1763364836020,103.1,141.66,141.63,3.51543958]
[1763364837441,103.1,141.65,141.64,0.72]
[1763364839308,103.1,141.65,141.63,3.51543958]
[1763364839823,103.1,141.65,141.63,0.72]
[1763364840007,0.67,141.64,141.61,3.51543958]
[1763364840207,103.1,141.63,141.61,3.51543958]
[1763364840427,103.1,141.63,141.62,3.51543958]
[1763364844435,103.1,141.63,141.62,0.72]
[1763364846439,103.1,141.63,141.61,2.79543958]
[1763364846641,103.1,141.62,141.59,23.3512]
[1763364846840,103.1,141.62,141.6,0.7]
[1763364847051,103.1,141.62,141.6,3.49543958]
[1763364847529,103.1,141.62,141.61,0.7]
[1763364847727,103.1,141.62,141.61,3.49543958]
[1763364852840,106.55543958,141.67,141.61,3.49543958]
[1763364853035,106.55543958,141.67,141.6,22.6512]
[1763364853036,103.1,141.67,141.63,2.79543958]
[1763364853332,103.1,141.67,141.66,2.79543958]
[1763364853539,0.66,141.7,141.66,2.79543958]
[1763364853721,0.66,141.7,141.66,3.49543958]
[1763364855347,0.66,141.7,141.67,2.79543958]
[1763364855929,103.1,141.72,141.67,2.79543958]
[1763364855930,106.55543958,141.72,141.67,2.79543958]
[1763364856122,106.55543958,141.72,141.66,22.6512]
[1763364856123,103.76,141.72,141.68,3.49543958]
[1763364856526,103.1,141.72,141.68,3.49543958]
[1763364856745,0.66,141.71,141.68,3.49543958]
[1763364857628,103.1,141.72,141.69,0.68]
[1763364857825,103.76,141.72,141.68,3.47543958]
[1763364858149,0.66,141.71,141.65,22.6512]
[1763364858350,0.66,141.71,141.67,2.79543958]
[1763364858730,0.66,141.71,141.67,25.44663958]
[1763364859332,0.66,141.71,141.67,26.12663958]
[1763364859752,0.66,141.71,141.68,2.79543958]
[1763364859977,0.66,141.71,141.68,3.47543958]
[1763364860573,0.66,141.71,141.68,2.79543958]
[1763364860850,0.66,141.71,141.67,3.47543958]
[1763364861053,0.66,141.71,141.68,0.68]
[1763364861226,0.66,141.71,141.65,22.6512]
[1763364861423,103.1,141.7,141.67,2.79543958]
[1763364861623,103.1,141.7,141.66,0.68]
[1763364861843,103.1,141.7,141.67,2.79543958]
[1763364862354,103.1,141.7,141.66,2.79543958]
[1763364862355,0.66,141.69,141.66,2.79543958]
[1763364862539,0.66,141.69,141.65,2.79543958]
[1763364862940,0.66,141.69,141.65,3.47543958]
[1763364863426,103.1,141.68,141.64,2.79543958]
[1763364863630,103.1,141.67,141.64,2.79543958]
[1763364863828,103.1,141.67,141.64,3.47543958]
[1763364864030,103.76,141.67,141.64,3.47543958]
[1763364864239,103.1,141.67,141.65,3.47543958]
[1763364864426,103.1,141.67,141.62,0.68]
[1763364864648,103.1,141.67,141.66,2.79543958]
[1763364864852,103.1,141.67,141.66,1.79031124]
[1763364865038,103.1,141.67,141.65,1.79031124]
[1763364865355,103.1,141.67,141.65,2.47031124]
[1763364867470,103.1,141.67,141.66,2.47031124]
[1763364867664,103.1,141.67,141.65,1.79031124]
[1763364868036,103.76,141.67,141.64,2.47031124]
[1763364869138,0.66,141.66,141.63,1.79031124]
[1763364869460,103.1,141.67,141.64,1.79031124]
[1763364869637,103.1,141.66,141.64,1.79031124]
[1763364870257,103.1,141.66,141.65,0.68]
[1763364870458,103.1,141.66,141.65,2.47031124]
[1763364870958,0.67,141.71,141.65,2.47031124]
[1763364871151,0.67,141.71,141.67,1.79031124]
[1763364871457,0.67,141.71,141.67,2.48031124]
[1763364871833,0.67,141.71,141.67,0.69]
[1763364872039,0.67,141.71,141.67,2.48031124]
[1763364872752,2.46031124,141.71,141.67,2.48031124]
[1763364873064,0.67,141.7,141.67,2.48031124]
[1763364873651,25.11151124,141.72,141.67,1.79031124]
[1763364873857,0.67,141.71,141.67,2.48031124]
[1763364875075,24.44151124,141.7,141.65,1.79031124]
[1763364875438,0.67,141.69,141.65,2.48031124]
[1763364876450,0.67,141.69,141.65,0.69]
[1763364879159,0.67,141.69,141.65,2.48031124]
[1763364879561,0.67,141.69,141.66,2.48031124]
[1763364879773,23.3212,141.72,141.67,1.79031124]
[1763364880067,23.3212,141.72,141.68,1.79031124]
[1763364880273,22.6512,141.72,141.69,0.69]
[1763364881271,23.3212,141.72,141.69,0.69]
[1763364883949,0.67,141.71,141.64,22.6512]
[1763364884275,1.79031124,141.7,141.66,0.69]
[1763364884775,1.79031124,141.7,141.66,2.48031124]
[1763364884776,0.67,141.7,141.66,2.48031124]
[1763364885086,0.67,141.7,141.67,0.69]
[1763364885374,103.1,141.69,141.67,0.69]
[1763364885772,103.1,141.69,141.67,2.48031124]
[1763364885954,103.1,141.69,141.68,1.79031124]
[1763364886153,103.1,141.69,141.68,2.48031124]
[1763364888979,103.77,141.75,141.69,22.6512]
[1763364889278,104.89031124,141.74,141.7,2.48031124]
[1763364889580,2.46031124,141.75,141.7,2.48031124]
[1763364889750,0.67,141.74,141.71,0.69]
[1763364889947,2.46031124,141.74,141.7,2.48031124]
[1763364890452,0.67,141.73,141.7,2.48031124]
[1763364890864,0.67,141.73,141.7,0.69]
[1763364891765,1.79031124,141.74,141.7,0.69]
[1763364891963,2.46031124,141.74,141.7,0.69]
[1763364893080,1.79031124,141.74,141.7,0.69]
[1763364893282,0.67,141.73,141.7,0.69]
[1763364893890,0.67,141.73,141.69,2.48031124]
[1763364894286,0.67,141.73,141.69,1.79031124]
[1763364894580,0.67,141.73,141.7,0.69]
[1763364895658,2.46031124,141.75,141.7,2.48031124]
[1763364895879,103.77,141.74,141.71,0.69]
[1763364896074,103.77,141.74,141.7,2.48031124]
[1763364896267,103.1,141.74,141.7,2.48031124]
[1763364896469,0.67,141.73,141.7,2.48031124]
[1763364896989,0.67,141.73,141.7,0.69]
[1763364897198,0.67,141.73,141.7,2.48031124]
[1763364898788,105.56031124,141.74,141.7,2.48031124]
[1763364898981,103.1,141.73,141.7,2.48031124]
[1763364899286,103.77,141.73,141.7,1.79031124]
[1763364899585,103.77,141.73,141.7,2.48031124]
[1763364900286,103.1,141.73,141.7,2.48031124]
[1763364900790,0.92,141.78,141.72,1.79031124]
[1763364901102,0.92,141.78,141.68,7.05807796]
[1763364901103,2.71031124,141.78,141.74,1.79031124]
[1763364901382,2.71031124,141.78,141.73,0.69]
[1763364901587,0.72,141.77,141.74,1.79031124]
[1763364901795,0.2,141.78,141.75,1.79031124]
[1763364902287,0.2,141.78,141.77,1.79031124]
[1763364902793,0.2,141.78,141.77,2.48031124]
[1763364905289,0.2,141.78,141.77,25.13151124]
[1763364907689,0.2,141.78,141.77,2.48031124]
[1763364908079,0.2,141.78,141.77,25.13151124]
[1763364908798,0.2,141.78,141.77,9.6415562]
[1763364909009,0.2,141.78,141.77,2.48031124]
[1763364909696,0.2,141.8,141.78,22.6512]
[1763364910004,0.2,141.8,141.79,12.26913893]
[1763364910695,0.2,141.8,141.79,2.48031124]
[1763364910894,0.2,141.8,141.76,9.78882769]
[1763364910895,0.92,141.8,141.76,0.69]
[1763364911200,0.92,141.8,141.78,1.79031124]
[1763364911397,0.92,141.8,141.77,2.48031124]
[1763364911584,0.2,141.8,141.79,1.79031124]
[1763364911985,0.2,141.8,141.79,2.48031124]
[1763364912792,0.2,141.8,141.79,34.92033893]
[1763364917111,0.2,141.8,141.79,33.13002769]
[1763364917408,0.2,141.8,141.79,25.13151124]
[1763364917604,0.2,141.8,141.73,26.76034227]
[1763364917787,0.2,141.8,141.79,1.79031124]
[1763364918193,0.2,141.8,141.79,2.48031124]
[1763364918899,0.2,141.8,141.79,34.92033893]
[1763364921585,0.2,141.83,141.79,41.97302247]
[1763364921813,0.2,141.83,141.82,1.79031124]
[1763364922312,0.2,141.83,141.82,2.48031124]
[1763364922909,0.2,141.83,141.8,0.69]
[1763364922910,0.86,141.83,141.8,0.69]
[1763364923094,0.2,141.83,141.82,1.79031124]
[1763364923613,0.2,141.83,141.8,0.69]
[1763364923909,0.86,141.83,141.8,1.79031124]
[1763364924108,0.86,141.83,141.79,1.79031124]
[1763364924300,0.66,141.82,141.8,1.79031124]
[1763364924811,0.66,141.82,141.8,2.79171997]
[1763364925385,0.66,141.82,141.79,2.79171997]
[1763364925912,0.66,141.82,141.8,2.79171997]
[1763364927296,0.66,141.82,141.79,2.79171997]
[1763364927632,0.66,141.82,141.78,2.79171997]
[1763364929002,0.66,141.82,141.78,3.48171997]
[1763364929623,0.66,141.82,141.79,2.79171997]
[1763364930120,0.2,141.83,141.8,2.79171997]
[1763364930317,0.2,141.83,141.8,3.48171997]
[1763364930499,0.2,141.83,141.82,25.44291997]
[1763364930699,0.2,141.83,141.82,26.14291997]
[1763364933100,0.2,141.83,141.82,23.3512]
[1763364933302,0.86,141.83,141.78,0.7]
[1763364933538,0.86,141.83,141.79,2.79171997]
[1763364933738,0.66,141.82,141.76,10.48882769]
[1763364934021,0.66,141.82,141.75,0.7]
[1763364934022,2.79171997,141.81,141.75,0.7]
[1763364934224,2.79171997,141.8,141.75,2.79171997]
[1763364934426,2.79171997,141.78,141.74,2.79171997]
[1763364934627,2.79171997,141.77,141.73,0.7]
[1763364934809,2.79171997,141.76,141.71,20.45171997]
[1763364935125,0.66,141.75,141.71,20.45171997]
[1763364935801,3.45171997,141.75,141.71,16.96]
[1763364936002,0.66,141.74,141.71,16.96]
[1763364936400,0.66,141.74,141.71,19.75171997]
[1763364937607,0.66,141.74,141.71,16.96]
[1763364937812,2.79171997,141.73,141.66,0.7]
[1763364938001,2.79171997,141.73,141.68,2.79171997]
[1763364938200,0.66,141.72,141.68,25.44291997]
[1763364938403,3.45171997,141.72,141.67,2.79171997]
[1763364938926,0.66,141.72,141.68,26.14291997]
[1763364940125,3.45171997,141.74,141.69,3.49171997]
[1763364940427,2.79171997,141.74,141.69,3.49171997]
[1763364940638,0.66,141.73,141.69,0.7]
[1763364940804,0.66,141.73,141.69,3.49171997]
[1763364941650,0.66,141.73,141.69,2.79171997]
[1763364941948,0.66,141.75,141.71,2.79171997]
[1763364942396,0.66,141.77,141.73,2.79171997]
[1763364942602,3.45171997,141.77,141.73,2.79171997]
[1763364942826,3.45171997,141.77,141.72,3.49171997]
[1763364943033,0.66,141.76,141.72,3.49171997]
[1763364943399,0.66,141.76,141.72,2.79171997]
[1763364944607,0.66,141.76,141.72,3.49171997]
[1763364945712,0.66,141.76,141.73,2.79171997]
[1763364945914,0.66,141.78,141.74,2.79171997]
[1763364946506,3.45171997,141.78,141.73,2.79171997]
[1763364946728,3.45171997,141.78,141.73,3.49171997]
[1763364946929,0.66,141.77,141.74,2.79171997]
[1763364947813,0.66,141.77,141.74,3.49171997]
[1763364948424,106.55171997,141.79,141.75,2.79171997]
[1763364948629,103.76,141.79,141.76,2.79171997]
[1763364948831,0.66,141.78,141.74,2.79171997]
[1763364949038,3.45171997,141.78,141.73,25.44291997]
[1763364949227,2.79171997,141.77,141.73,22.6512]
[1763364949425,0.66,141.77,141.73,26.14291997]
[1763364953240,0.66,141.77,141.72,2.79171997]
[1763364953426,0.66,141.77,141.72,3.49171997]
[1763364953625,3.45171997,141.77,141.72,3.49171997]
[1763364953835,3.45171997,141.77,141.73,0.7]
[1763364954036,0.66,141.77,141.73,3.49171997]
[1763364954632,103.1,141.76,141.73,3.49171997]
[1763364955433,103.1,141.76,141.73,0.7]
[1763364955642,103.76,141.76,141.73,3.49171997]
[1763364958437,103.76,141.76,141.73,0.7]
[1763364958653,0.66,141.75,141.71,25.44291997]
[1763364958839,0.66,141.75,141.72,2.79171997]
[1763364959042,0.66,141.75,141.72,3.49171997]
[1763364959645,103.1,141.76,141.72,3.49171997]
[1763364959844,103.76,141.76,141.73,0.7]
[1763364960457,103.1,141.76,141.73,3.49171997]
[1763364960859,0.68,141.8,141.75,2.79171997]
[1763364961172,0.88,141.84,141.79,2.79171997]
[1763364961331,0.2,141.84,141.81,2.79171997]
[1763364962542,0.2,141.84,141.81,0.67]
[1763364962744,0.2,141.84,141.81,8.44481934]
[1763364963555,0.2,141.84,141.82,7.77481934]
[1763364964344,0.88,141.83,141.81,7.77481934]
[1763364964546,0.2,141.83,141.8,7.77481934]
[1763364964961,0.68,141.82,141.8,7.77481934]
[1763364965466,0.2,141.83,141.8,7.77481934]
[1763364965764,0.88,141.83,141.8,7.77481934]
[1763364966062,0.2,141.83,141.79,7.77481934]
[1763364966243,0.68,141.82,141.78,7.77481934]
[1763364966450,0.68,141.82,141.78,8.44481934]
[1763364968641,0.68,141.82,141.79,7.77481934]
[1763364968849,0.68,141.82,141.78,30.42601934]
[1763364969262,0.68,141.82,141.79,7.77481934]
[1763364969771,0.68,141.82,141.78,30.42601934]
[1763364969964,0.68,141.82,141.79,7.77481934]
[1763364970169,0.68,141.82,141.79,8.44481934]
[1763364970372,0.68,141.82,141.79,7.77481934]
[1763364972277,100.98,141.83,141.79,7.77481934]
[1763364972467,100.98,141.83,141.79,8.44481934]
[1763364974485,101.38,141.83,141.79,8.44481934]
[1763364978872,100.98,141.83,141.8,0.67]
[1763364979060,100.98,141.83,141.8,8.44481934]
[1763364979260,101.38,141.83,141.79,7.77481934]
[1763364979463,101.38,141.83,141.79,8.44481934]
[1763364979672,100.98,141.83,141.81,7.77481934]
[1763364979870,100.98,141.83,141.82,7.77481934]
[1763364980472,100.98,141.83,141.81,8.44481934]
[1763364982074,100.98,141.83,141.82,7.77481934]
[1763364982480,100.98,141.83,141.82,8.44481934]
[1763364982876,100.98,141.83,141.82,3.46083805]
[1763364983676,100.98,141.83,141.82,2.79083805]
[1763364984800,100.98,141.83,141.82,1.78626543]
[1763364985099,100.98,141.83,141.82,2.45626543]
[1763364987186,0.2,141.84,141.82,2.45626543]
[1763364988585,0.2,141.84,141.82,1.78626543]
[1763364988785,0.2,141.84,141.82,2.45626543]
[1763364989104,0.6,141.84,141.73,7.05566923]
[1763364989306,0.6,141.84,141.8,1.78626543]
[1763364989602,0.4,141.83,141.8,1.78626543]
[1763364989972,2.18626543,141.83,141.78,1.78626543]
[1763364990278,2.18626543,141.83,141.78,25.10746543]
[1763364990475,1.98626543,141.84,141.79,1.78626543]
[1763364990701,1.98626543,141.84,141.8,1.78626543]
[1763364990702,0.6,141.84,141.8,1.78626543]
[1763364991182,0.2,141.84,141.81,2.46626543]
[1763364991591,0.6,141.84,141.81,1.78626543]
[1763364992716,0.2,141.84,141.81,2.46626543]
[1763364993291,0.6,141.84,141.81,2.46626543]
[1763364993512,2.38626543,141.84,141.79,0.68]
[1763364993713,0.6,141.84,141.79,2.46626543]
[1763364994106,0.6,141.84,141.8,2.46626543]
[1763364995699,100.98,141.83,141.8,2.46626543]
[1763364996298,100.98,141.83,141.81,2.46626543]
[1763364997003,100.98,141.83,141.81,1.78626543]
[1763364997210,100.98,141.83,141.8,1.78626543]
[1763364997593,100.98,141.83,141.81,0.68]
[1763364997796,100.98,141.83,141.81,2.46626543]
[1763364998219,100.98,141.83,141.81,0.68]
[1763364998405,100.98,141.83,141.81,2.46626543]
[1763364998936,101.38,141.83,141.8,1.78626543]
[1763364999138,0.2,141.84,141.8,2.46626543]
[1763364999331,0.6,141.84,141.8,2.46626543]
[1763365000743,0.6,141.84,141.8,0.68]
[1763365001036,0.4,141.83,141.8,1.78626543]
[1763365001440,0.4,141.83,141.8,2.46626543]
[1763365002032,0.2,141.84,141.8,2.46626543]
[1763365002221,0.6,141.84,141.8,2.46626543]
[1763365002646,0.6,141.84,141.8,0.68]
[1763365002847,0.6,141.84,141.8,2.46626543]
[1763365003951,0.4,141.83,141.8,1.78626543]
[1763365004243,0.4,141.83,141.79,2.46626543]
[1763365004623,101.38,141.83,141.79,2.46626543]
[1763365005444,101.38,141.82,141.77,0.68]
[1763365005752,0.4,141.81,141.77,2.46626543]
[1763365005916,101.38,141.81,141.77,2.46626543]
[1763365007243,0.4,141.8,141.75,1.78626543]
[1763365007437,2.18626543,141.8,141.74,1.78626543]
[1763365007635,1.78626543,141.79,141.74,1.78626543]
[1763365007945,2.18626543,141.79,141.74,2.46626543]